bitfinex/quotes_SOLUSD_20260306
["timestamp","ask_amount","ask_price","bid_price","bid_amount"]
[1772801061210,0.98073683,86.249,86.182,0.9693282]
[1772801061406,0.98073683,86.249,86.189,0.9693282]
[1772801061605,0.98073683,86.239,86.189,0.9693282]
[1772801061989,0.98073683,86.239,86.194,0.14216157]
[1772801062304,0.98073683,86.239,86.198,0.14216157]
[1772801062499,0.98073683,86.239,86.188,29.00613026]
[1772801062500,0.98073683,86.229,86.201,0.9693282]
[1772801062901,0.98073683,86.227,86.201,0.9693282]
[1772801064709,0.98073683,86.227,86.184,0.14216157]
[1772801064710,0.98073683,86.227,86.195,0.9693282]
[1772801064913,0.98073683,86.225,86.197,0.9693282]
[1772801066192,0.98073683,86.237,86.2,0.14216157]
[1772801066398,0.98073683,86.237,86.203,0.9693282]
[1772801066911,12.576692,86.237,86.205,0.9693282]
[1772801067142,28.98199963,86.261,86.207,0.9693282]
[1772801067297,0.98073683,86.259,86.213,0.9693282]
[1772801070513,0.98073683,86.257,86.215,0.9693282]
[1772801071310,0.98073683,86.257,86.217,0.9693282]
[1772801071512,0.98073683,86.257,86.223,0.9693282]
[1772801072307,11.5933964,86.256,86.225,0.96122695]
[1772801072904,0.98073683,86.257,86.225,0.96122695]
[1772801072905,11.5928547,86.261,86.225,0.96122695]
[1772801073410,1.05397247,86.26,86.225,0.96122695]
[1772801074714,1.05397247,86.258,86.224,11.59769901]
[1772801075219,1.05397247,86.258,86.219,0.96122695]
[1772801075520,1.05397247,86.258,86.217,11.59856899]
[1772801075521,1.05397247,86.229,86.182,0.96122695]
[1772801075819,1.05397247,86.219,86.182,0.96122695]
[1772801076198,1.05397247,86.219,86.184,0.96122695]
[1772801076696,3.44076676,86.22,86.184,0.96122695]
[1772801076697,1.05397247,86.217,86.184,0.96122695]
[1772801076901,1.05397247,86.217,86.185,0.96122695]
[1772801078928,1.05397247,86.215,86.185,0.96122695]
[1772801079637,1.05397247,86.215,86.18,1.06122695]
[1772801080019,1.05397247,86.215,86.182,0.96122695]
[1772801080727,11.59877516,86.216,86.184,0.96122695]
[1772801081020,1.05397247,86.219,86.186,0.96122695]
[1772801082824,11.59850611,86.218,86.186,0.96122695]
[1772801083010,1.05397247,86.217,86.186,0.96122695]
[1772801083706,1.05397247,86.217,86.188,0.96122695]
[1772801085516,12.65274763,86.216,86.19,0.96122695]
[1772801085713,1.05397247,86.216,86.19,0.96122695]
[1772801085923,1.05397247,86.233,86.195,0.14216157]
[1772801086129,1.05397247,86.233,86.204,0.96122695]
[1772801087731,12.65059553,86.232,86.206,0.96122695]
[1772801088235,1.05397247,86.253,86.21,0.96122695]
[1772801088436,1.05397247,86.253,86.209,0.14216157]
[1772801088437,1.05397247,86.259,86.224,0.96122695]
[1772801091148,1.05397247,86.257,86.226,0.96122695]
[1772801094621,11.5933964,86.256,86.228,1.0195464]
[1772801095018,12.6064203,86.256,86.228,1.0195464]
[1772801096045,1.0130239,86.255,86.23,1.0195464]
[1772801096420,1.0130239,86.255,86.221,0.28432314]
[1772801096734,1.0130239,86.255,86.224,1.0195464]
[1772801097332,1.0130239,86.255,86.199,58.00531077]
[1772801097333,1.0130239,86.229,86.185,1.0195464]
[1772801097945,1.0130239,86.229,86.183,11.60314141]
[1772801097946,1.0130239,86.229,86.193,1.0195464]
[1772801098243,3.44076676,86.23,86.195,1.0195464]
[1772801098244,1.0130239,86.227,86.195,1.0195464]
[1772801099945,1.0130239,86.225,86.197,1.0195464]
[1772801102353,57.96849459,86.254,86.184,0.14216157]
[1772801102354,11.59312759,86.258,86.201,0.96552862]
[1772801102557,11.59312759,86.258,86.212,0.14216157]
[1772801102737,11.59312759,86.258,86.217,0.96552862]
[1772801103046,11.59312759,86.258,86.223,0.96552862]
[1772801103629,11.59191811,86.267,86.231,0.96552862]
[1772801103842,11.59191811,86.267,86.233,0.96552862]
[1772801104241,0.96505435,86.264,86.235,0.96552862]
[1772801105237,40.56230949,86.287,86.237,0.96552862]
[1772801105434,0.96505435,86.286,86.243,0.96552862]
[1772801106563,12.55455426,86.285,86.245,0.96552862]
[1772801106738,12.55455426,86.285,86.247,0.96552862]
[1772801107030,11.58892089,86.29,86.253,0.96552862]
[1772801107237,11.58892089,86.29,86.263,0.96552862]
[1772801108050,7.28521164,86.313,86.263,0.96552862]
[1772801108051,11.58741118,86.301,86.263,0.96552862]
[1772801108241,0.96505435,86.299,86.263,0.96552862]
[1772801108753,11.58741118,86.301,86.265,0.96552862]
[1772801108754,0.96505435,86.297,86.265,0.96552862]
[1772801111242,0.96505435,86.295,86.265,0.96552862]
[1772801112336,0.96505435,86.295,86.266,11.59205248]
[1772801112655,0.96505435,86.295,86.267,0.96552862]
[1772801113554,12.55334554,86.294,86.267,0.96552862]
[1772801113866,0.96505435,86.293,86.261,0.42648471]
[1772801114364,0.96505435,86.293,86.264,0.96552862]
[1772801115568,0.96505435,86.291,86.264,0.96552862]
[1772801116841,11.58882836,86.29,86.264,0.96552862]
[1772801117042,11.58882836,86.29,86.265,0.96552862]
[1772801118462,7.28521164,86.313,86.267,0.96552862]
[1772801118463,0.96505435,86.305,86.267,0.96552862]
[1772801118655,0.96505435,86.305,86.272,0.14216157]
[1772801118859,0.96505435,86.305,86.273,0.96552862]
[1772801119066,0.96505435,86.303,86.275,1.9e-06]
[1772801120363,0.96505435,86.289,86.188,46.40986358]
[1772801120562,0.96505435,86.259,86.193,11.60187022]
[1772801120961,0.96505435,86.257,86.2,3.69383402]
[1772801121161,0.96505435,86.257,86.203,0.96552862]
[1772801121472,0.96505435,86.257,86.214,0.14216157]
[1772801121680,0.96505435,86.257,86.221,0.96552862]
[1772801122166,0.96505435,86.255,86.223,12.56336214]
[1772801122357,0.96505435,86.255,86.224,1.24985176]
[1772801122556,0.96505435,86.255,86.224,0.96552862]
[1772801122756,0.96505435,86.255,86.224,1.24985176]
[1772801123357,0.96505435,86.253,86.224,1.24985176]
[1772801124174,0.96505435,86.253,86.226,0.96552862]
[1772801124359,11.59366522,86.254,86.226,0.96552862]
[1772801125465,0.96505435,86.26,86.224,0.28432314]
[1772801125466,0.96505435,86.258,86.228,0.96552862]
[1772801126961,0.96505435,86.258,86.221,0.96552862]
[1772801127196,0.96505435,86.258,86.224,0.96552862]
[1772801127477,11.59326199,86.257,86.224,0.96552862]
[1772801127653,0.96505435,86.256,86.226,0.96552862]
[1772801128182,0.96505435,86.263,86.233,0.14216157]
[1772801128384,0.96505435,86.263,86.234,0.96552862]
[1772801130794,3.43795458,86.27,86.234,0.96552862]
[1772801130795,0.96505435,86.261,86.234,0.96552862]
[1772801131479,0.96505435,86.261,86.236,0.96552862]
[1772801131681,12.50884913,86.267,86.236,0.96552862]
[1772801132077,0.91680149,86.266,86.236,0.96552862]
[1772801133383,0.91680149,86.264,86.238,0.91977422]
[1772801135284,0.91680149,86.264,86.233,11.88076701]
[1772801135491,3.43795458,86.27,86.233,12.80054123]
[1772801135492,0.91680149,86.262,86.233,12.80054123]
[1772801135868,0.91680149,86.262,86.234,0.91977422]
[1772801136666,0.91680149,86.262,86.234,1.20409736]
[1772801137192,0.91680149,86.262,86.234,0.28432314]
[1772801137369,0.91680149,86.262,86.235,0.91977422]
[1772801137784,0.91680149,86.26,86.237,0.91977422]
[1772801138288,11.59221428,86.265,86.237,0.91977422]
[1772801138670,12.50901577,86.265,86.237,0.91977422]
[1772801139375,0.91680149,86.264,86.239,0.91977422]
[1772801140668,0.91680149,86.262,86.234,11.59626038]
[1772801145475,0.91680149,86.262,86.226,0.91977422]
[1772801145476,0.91680149,86.26,86.231,0.91977422]
[1772801145778,0.91680149,86.26,86.232,1.06193579]
[1772801148294,0.91680149,86.258,86.229,0.42648471]
[1772801149091,0.91680149,86.258,86.229,1.34625893]
[1772801149393,0.91680149,86.258,86.229,0.42648471]
[1772801149775,0.91680149,86.258,86.224,12.51742557]
[1772801149982,0.91680149,86.249,86.192,0.91977422]
[1772801150396,0.91680149,86.247,86.199,0.91977422]
[1772801150590,0.91680149,86.247,86.203,0.91977422]
[1772801150905,0.91680149,86.247,86.206,0.91977422]
[1772801151103,0.91680149,86.247,86.213,0.14216157]
[1772801151291,0.91680149,86.247,86.213,1.06193579]
[1772801152502,3.43795458,86.26,86.215,0.91977422]
[1772801152503,0.91680149,86.245,86.215,0.91977422]
[1772801153195,0.91680149,86.245,86.211,0.42648471]
[1772801153399,0.91680149,86.245,86.21,11.59956221]
[1772801153573,0.91680149,86.239,86.205,11.6002472]
[1772801153778,0.91680149,86.229,86.193,0.91977422]
[1772801153974,0.91680149,86.229,86.195,0.91977422]
[1772801154494,0.81212304,86.227,86.196,12.38745198]
[1772801155384,0.81212304,86.227,86.197,0.78598556]
[1772801156285,0.81212304,86.227,86.196,11.60146642]
[1772801156795,0.81212304,86.227,86.189,52.94598556]
[1772801156796,0.81212304,86.225,86.193,0.78598556]
[1772801158698,0.81212304,86.223,86.191,0.14216157]
[1772801159078,0.81212304,86.223,86.191,0.92814713]
[1772801159679,0.81212304,86.223,86.191,0.14216157]
[1772801160297,0.81212304,86.242,86.196,0.78598556]
[1772801160498,0.81212304,86.269,86.207,0.14216157]
[1772801160703,0.81212304,86.267,86.214,0.78598556]
[1772801161701,0.81212304,86.267,86.217,0.14216157]
[1772801161907,0.81212304,86.267,86.224,0.79219383]
[1772801162500,0.78517837,86.259,86.221,0.79219383]
[1772801162709,0.78517837,86.259,86.223,0.79219383]
[1772801162892,0.78517837,86.257,86.225,0.79219383]
[1772801163816,0.78517837,86.255,86.226,11.59743]
[1772801164187,0.78517837,86.255,86.226,12.38962383]
[1772801164494,0.78517837,86.255,86.227,0.79219383]
[1772801164693,0.78517837,86.265,86.227,0.79219383]
[1772801165622,0.78517837,86.265,86.226,40.59100502]
[1772801166113,0.78517837,86.263,86.226,0.79219383]
[1772801167216,0.78517837,86.263,86.228,0.79219383]
[1772801167416,0.78517837,86.263,86.234,0.79219383]
[1772801167917,0.78517837,86.263,86.236,0.79219383]
[1772801168923,0.78517837,86.285,86.238,0.79219383]
[1772801169099,0.78517837,86.285,86.244,0.79219383]
[1772801169812,0.78517837,86.284,86.244,0.79219383]
[1772801170403,0.78517837,86.282,86.246,0.79219383]
[1772801171815,0.78517837,86.282,86.245,11.59487506]
[1772801172114,0.78517837,86.282,86.245,12.38706889]
[1772801172316,0.78517837,86.282,86.246,0.79219383]
[1772801172704,0.78517837,86.282,86.248,0.79219383]
[1772801172905,0.78517837,86.289,86.25,0.9343554]
[1772801173118,0.78517837,86.289,86.245,40.58206272]
[1772801173119,0.78517837,86.289,86.248,3.69383402]
[1772801173416,0.78517837,86.289,86.238,4.48602785]
[1772801173621,0.78517837,86.289,86.239,0.79219383]
[1772801174633,0.78517837,86.287,86.241,0.79219383]
[1772801175130,0.78517837,86.287,86.243,0.79219383]
[1772801178010,0.78517837,86.285,86.245,0.79219383]
[1772801178403,0.78517837,86.279,86.225,11.59756451]
[1772801178704,0.78517837,86.269,86.214,0.79219383]
[1772801178915,0.78517837,86.269,86.213,11.59917877]
[1772801178916,0.78517837,86.269,86.217,0.79219383]
[1772801179303,0.78517837,86.259,86.217,0.79219383]
[1772801180320,0.78517837,86.259,86.214,0.14216157]
[1772801180321,0.78517837,86.257,86.219,0.79219383]
[1772801181422,0.78517837,86.255,86.219,0.79219383]
[1772801181625,0.78517837,86.229,86.171,0.79219383]
[1772801181925,0.78517837,86.219,86.177,0.79219383]
[1772801182314,0.78517837,86.219,86.181,11.60348568]
[1772801182522,0.78517837,86.219,86.182,0.79219383]
[1772801183023,0.78517837,86.227,86.182,0.79219383]
[1772801183229,0.78517837,86.227,86.184,0.79219383]
[1772801183426,0.78517837,86.225,86.185,11.60294714]
[1772801183609,0.78517837,86.225,86.186,0.79219383]
[1772801184616,0.78517837,86.219,86.186,0.79219383]
[1772801184820,0.78517837,86.219,86.18,11.70356477]
[1772801185026,0.78517837,86.219,86.181,0.79219383]
[1772801185327,0.78517837,86.209,86.18,0.1]
[1772801185718,11.59985152,86.208,86.18,0.1]
[1772801185919,0.78517837,86.207,86.18,0.1]
[1772801187922,0.78517837,86.205,86.18,0.1]
[1772801190236,0.78517837,86.203,86.18,0.1]
[1772801192517,0.64592173,86.201,86.18,0.1]
[1772801194625,11.60065891,86.202,86.18,0.1]
[1772801194626,0.64592173,86.199,86.18,0.1]
[1772801199924,12.24711897,86.198,86.18,0.1]
[1772801200138,0.64592173,86.197,86.18,0.1]
[1772801202545,11.83383235,86.23,86.16,0.1]
[1772801202546,0.64592173,86.195,86.16,0.1]
[1772801202845,0.64592173,86.195,86.16,0.74627052]
[1772801203142,0.64592173,86.195,86.162,0.64627052]
[1772801205245,0.64592173,86.189,86.16,0.1]
[1772801205450,0.64592173,86.179,86.16,0.1]
[1772801206548,0.64592173,86.179,86.16,11.70626184]
[1772801207549,0.64592173,86.179,86.16,12.35253236]
[1772801207750,0.64592173,86.209,86.161,0.64627052]
[1772801207955,0.64592173,86.209,86.163,0.64627052]
[1772801209540,0.64592173,86.209,86.165,0.78843209]
[1772801211256,0.64592173,86.208,86.165,0.78843209]
[1772801211455,0.64592173,86.208,86.165,0.64627052]
[1772801211658,0.64592173,86.206,86.146,102.9]
[1772801211861,0.53809103,86.157,86.005,0.64627052]
[1772801212153,3.43932366,86.06,86.002,0.64627052]
[1772801212459,3.43932366,86.08,86.002,0.64627052]
[1772801212643,3.43932366,86.08,86.001,133.71937535]
[1772801212644,3.43932366,86.08,86.005,0.64627052]
[1772801212845,0.53417169,86.079,86.005,0.64627052]
[1772801213040,0.53417169,86.088,86.005,0.64627052]
[1772801213356,0.53417169,86.088,86.004,3.69383402]
[1772801213357,0.53029738,86.119,86.033,3.69383402]
[1772801213556,0.53029738,86.129,86.052,5.47104621]
[1772801213761,46.42285305,86.165,86.056,0.64627052]
[1772801213762,0.53029738,86.149,86.056,0.64627052]
[1772801214058,0.53029738,86.149,86.066,0.64627052]
[1772801215144,79.60680705,86.151,86.077,0.65480301]
[1772801215535,79.60680705,86.151,86.078,133.59975834]
[1772801215757,79.60680705,86.151,86.082,0.65480301]
[1772801216571,79.60680705,86.151,86.083,4.82477569]
[1772801216757,79.60680705,86.151,86.087,0.65480301]
[1772801217358,0.52268174,86.16,86.087,0.65480301]
[1772801217660,0.52268174,86.16,86.086,3.69383402]
[1772801217661,0.51158317,86.17,86.092,0.65480301]
[1772801218063,0.51158317,86.159,86.092,0.65480301]
[1772801219762,0.50439496,86.157,86.097,0.65480301]
[1772801221043,0.50086266,86.149,86.097,0.65480301]
[1772801221369,3.43932366,86.15,86.093,40.65371167]
[1772801221370,0.49737093,86.139,86.093,11.61534619]
[1772801221660,0.49737093,86.139,86.096,3.69383402]
[1772801221967,0.49391931,86.137,86.097,11.61480655]
[1772801222346,0.49391931,86.137,86.097,12.21628953]
[1772801222558,0.49391931,86.137,86.098,0.60148298]
[1772801223558,0.28432314,86.109,86.061,0.60148298]
[1772801223760,11.6121091,86.117,86.068,3.69383402]
[1772801223960,12.09924365,86.117,86.069,0.60148298]
[1772801224279,0.4838005,86.116,86.069,0.60148298]
[1772801225876,0.48050475,86.114,86.071,0.60148298]
[1772801226047,0.48050475,86.099,86.062,3.69383402]
[1772801226364,40.64332577,86.115,86.062,3.69383402]
[1772801226365,0.47724685,86.111,86.063,0.60148298]
[1772801227748,0.47402637,86.109,86.067,3.69383402]
[1772801227954,0.47402637,86.109,86.068,0.60148298]
[1772801229271,11.612229,86.117,86.068,0.60148298]
[1772801229787,0.46769596,86.116,86.072,3.69383402]
[1772801229964,0.46769596,86.116,86.073,0.60148298]
[1772801230357,0.46458519,86.109,86.073,0.60148298]
[1772801231869,11.6133228,86.108,86.074,11.61791017]
[1772801232174,11.6133228,86.108,86.074,12.21939315]
[1772801232472,11.6133228,86.108,86.075,0.60148298]
[1772801232652,0.45847041,86.123,86.075,0.60148298]
[1772801233960,0.45847041,86.123,86.074,40.66268559]
[1772801233961,11.60644854,86.159,86.083,0.60148298]
[1772801234265,0.4554656,86.156,86.083,0.60148298]
[1772801234677,29.01702595,86.157,86.083,0.60148298]
[1772801234678,0.4524953,86.149,86.083,0.60148298]
[1772801235874,0.44955912,86.147,86.085,0.60148298]
[1772801236660,0.44665666,86.139,86.085,0.60148298]
[1772801236862,0.44665666,86.129,86.085,0.60148298]
[1772801237085,0.44665666,86.119,86.084,11.61656056]
[1772801238575,0.44665666,86.119,86.052,0.14216157]
[1772801238576,11.61197426,86.118,86.077,0.60148298]
[1772801238884,0.44095138,86.128,86.077,0.60148298]
[1772801240599,0.4353764,86.126,86.079,0.60148298]
[1772801241586,0.4353764,86.126,86.082,0.60148298]
[1772801241781,0.43263685,86.119,86.082,0.60148298]
[1772801242989,0.42992876,86.118,86.083,11.61669551]
[1772801243289,0.42992876,86.118,86.083,12.21817849]
[1772801243486,0.42725178,86.127,86.084,0.60148298]
[1772801244095,0.42725178,86.119,86.083,11.61669551]
[1772801244467,0.42725178,86.119,86.083,12.21817849]
[1772801244780,0.42460554,86.13,86.084,0.60148298]
[1772801244982,0.42460554,86.13,86.086,0.60148298]
[1772801245178,8.62598293,86.12,86.085,11.61642562]
[1772801245389,0.4219897,86.109,86.064,0.60148298]
[1772801245610,0.4219897,86.089,86.046,52.22]
[1772801245762,0.4219897,86.089,86.046,63.84158824]
[1772801245966,0.4219897,86.089,86.048,0.60148298]
[1772801247470,0.41684781,86.087,86.049,12.22276852]
[1772801247888,0.41684781,86.087,86.049,0.60148298]
[1772801248469,0.41432108,86.079,86.046,52.22]
[1772801249178,0.41432108,86.087,86.048,0.60148298]
[1772801249392,0.41432108,86.087,86.012,0.14216157]
[1772801249393,40.66977306,86.059,86.015,0.60148298]
[1772801249604,40.66977306,86.059,86.0,5.556903]
[1772801249605,0.41182336,86.058,86.017,0.60148298]
[1772801250989,11.61993516,86.059,86.017,0.60148298]
[1772801251366,0.40691367,86.049,86.0,5.556903]
[1772801251596,0.40450104,86.056,86.001,0.55122449]
[1772801251773,0.40450104,86.056,86.002,0.55122449]
[1772801251976,0.40450104,86.049,86.002,0.55122449]
[1772801252489,0.40211612,86.039,86.002,0.55122449]
[1772801252687,0.40211612,86.038,86.0,5.556903]
[1772801253201,0.40211612,86.037,86.0,5.556903]
[1772801253571,0.39975859,86.035,86.0,5.556903]
[1772801253798,11.62304151,86.036,86.001,0.55122449]
[1772801254000,11.62249501,86.041,86.001,0.55122449]
[1772801254291,11.62088039,86.052,86.001,0.55122449]
[1772801254498,11.62088039,86.052,85.968,0.55122449]
[1772801254499,0.39742814,86.028,85.968,0.55122449]
[1772801254673,0.39742814,86.028,85.967,11.63237056]
[1772801254674,0.39742814,86.009,85.967,11.63237056]
[1772801255070,0.39742814,86.009,85.968,0.55122449]
[1772801255295,0.39742814,86.008,85.968,0.55122449]
[1772801255596,0.39512446,86.005,85.965,11.6325388]
[1772801255793,0.39512446,86.005,85.958,52.79122449]
[1772801255794,0.39512446,86.005,85.967,11.63237056]
[1772801255973,0.39512446,86.005,85.958,52.79122449]
[1772801256289,0.39512446,85.999,85.955,11.90225431]
[1772801256471,0.39512446,85.999,85.968,0.55122449]
[1772801256673,0.39512446,85.999,85.967,11.63237056]
[1772801257084,0.39284724,85.998,85.959,0.55122449]
[1772801257294,12.01755676,86.007,85.968,0.55122449]
[1772801257586,12.01755676,86.007,85.97,0.55122449]
[1772801257980,0.39059617,86.016,85.97,0.55122449]
[1772801260090,0.38617131,86.014,85.971,40.71140267]
[1772801260789,0.38617131,86.014,85.971,41.26262716]
[1772801260996,0.42648471,86.014,85.966,1e-08]
[1772801261182,0.38399693,85.979,85.966,1e-08]
[1772801262391,0.37972279,85.977,85.966,1e-08]
[1772801263089,0.37972279,85.976,85.95,0.60028988]
[1772801263294,0.37972279,85.976,85.95,1e-08]
[1772801263295,0.14216157,85.976,85.95,1e-08]
[1772801263677,0.14216157,85.976,85.886,67.25300516]
[1772801263678,5.10909883,85.956,85.886,20.68016823]
[1772801263977,17.25196586,85.96,85.823,163.7]
[1772801263978,0.42648471,85.949,85.864,0.59142332]
[1772801264191,0.42648471,85.949,85.867,0.59142332]
[1772801264388,12.77386351,85.983,85.877,4.82477569]
[1772801264389,11.63034123,85.982,85.877,4.82477569]
[1772801264575,40.70619431,85.982,85.882,0.59142332]
[1772801264891,0.28432314,85.969,85.892,0.59142332]
[1772801265073,0.42648471,85.969,85.892,0.59142332]
[1772801265274,0.42648471,85.959,85.892,0.59142332]
[1772801265471,0.42648471,85.979,85.892,0.59142332]
[1772801265895,0.42648471,85.979,85.898,0.59142332]
[1772801266078,0.14216157,85.979,85.902,0.59142332]
[1772801266282,0.14216157,85.979,85.907,0.59142332]
[1772801266790,11.63034123,85.982,85.909,0.59142332]
[1772801266977,7.94908782,85.983,85.911,0.59142332]
[1772801267294,7.94908782,85.983,85.928,0.14216157]
[1772801267595,7.94908782,85.983,85.931,0.59142332]
[1772801268392,29.06408091,86.017,85.936,0.59142332]
[1772801268694,11.62533858,86.019,85.935,3.69383402]
[1772801268695,0.14216157,86.009,85.938,0.59142332]
[1772801269396,40.68868504,86.019,85.941,0.14216157]
[1772801269580,40.68868504,86.019,85.942,0.59142332]
[1772801269781,0.14216157,86.018,85.942,0.59142332]
[1772801270197,0.28432314,86.018,85.942,0.59142332]
[1772801270402,0.14216157,86.016,85.947,0.59142332]
[1772801270784,0.28432314,86.016,85.947,0.59142332]
[1772801271383,11.62560889,86.017,85.947,0.59142332]
[1772801271584,0.14216157,86.026,85.95,0.14216157]
[1772801271789,0.14216157,86.026,85.951,0.59142332]
[1772801271987,0.28432314,86.026,85.951,0.59142332]
[1772801272594,11.62452775,86.025,85.956,0.59142332]
[1772801274103,11.62452775,86.025,85.957,0.14216157]
[1772801274284,11.62452775,86.025,85.958,0.59142332]
[1772801274483,41.10098411,86.049,85.963,0.59142332]
[1772801274685,0.42648471,86.029,85.963,0.59142332]
[1772801274885,0.28432314,86.029,85.963,0.59142332]
[1772801275700,8.62598293,86.04,85.963,0.59142332]
[1772801275907,0.28432314,86.039,85.963,0.59142332]
[1772801276491,0.28432314,86.027,85.968,0.59142332]
[1772801276694,0.42648471,86.027,85.968,0.59142332]
[1772801277390,11.62412237,86.028,85.968,0.59142332]
[1772801277899,0.14216157,86.027,85.968,0.59142332]
[1772801278101,0.42648471,86.027,85.968,0.59142332]
[1772801278602,40.68537418,86.026,85.973,0.59142332]
[1772801278803,0.28432314,86.025,85.973,0.59142332]
[1772801279106,40.68537418,86.026,85.973,0.59142332]
[1772801280207,11.62439262,86.026,85.973,0.59142332]
[1772801280817,11.62155566,86.047,85.98,0.59142332]
[1772801280996,11.62155566,86.047,85.982,0.59142332]
[1772801281792,11.62155566,86.047,85.986,3.69383402]
[1772801282003,7.13117114,86.048,85.989,0.59142332]
[1772801282205,18.75265079,86.048,85.991,0.59142332]
[1772801282604,7.13117114,86.048,85.991,0.59142332]
[1772801282892,40.66050199,86.079,85.995,0.14216157]
[1772801283204,7.13520319,86.109,86.022,0.59142332]
[1772801283205,11.70805347,86.09,86.022,0.59142332]
[1772801283508,7.13520319,86.109,86.019,3.97815716]
[1772801283509,11.61495987,86.096,86.035,0.14216157]
[1772801283702,11.61495987,86.096,86.042,0.59142332]
[1772801284016,7.13520319,86.109,86.049,0.59142332]
[1772801284213,7.13520319,86.109,86.052,0.14216157]
[1772801284422,11.61177513,86.12,86.061,0.59142332]
[1772801284877,29.02324956,86.138,86.061,0.59142332]
[1772801285131,7.12318308,86.18,86.076,0.59142332]
[1772801285132,29.01612135,86.159,86.076,0.59142332]
[1772801285304,29.01612135,86.159,86.082,0.59142332]
[1772801285821,40.62256989,86.159,86.086,3.69383402]
[1772801286015,40.62256989,86.159,86.087,0.59142332]
[1772801286731,0.28432314,86.158,86.087,0.59142332]
[1772801287022,0.42648471,86.158,86.087,0.59142332]
[1772801287399,40.62256989,86.159,86.087,0.59142332]
[1772801287604,11.60375497,86.179,86.089,0.59142332]
[1772801287812,11.60375497,86.179,86.095,3.69383402]
[1772801288005,8.62598293,86.17,86.096,0.59142332]
[1772801288206,0.14216157,86.169,86.096,0.59142332]
[1772801288402,11.60375497,86.179,86.101,0.14216157]
[1772801288615,11.60375497,86.179,86.112,0.59142332]
[1772801290039,11.60375497,86.179,86.117,0.59142332]
[1772801290220,7.12318308,86.18,86.119,0.59142332]
[1772801290421,18.7268757,86.18,86.121,0.59142332]
[1772801290620,11.60369262,86.18,86.121,0.59142332]
[1772801291936,0.14216157,86.195,86.126,0.59142332]
[1772801292128,0.42648471,86.198,86.126,0.59142332]
[1772801292332,0.42648471,86.189,86.126,0.59142332]
[1772801293246,0.42648471,86.189,86.116,12.20363586]
[1772801293247,8.62598293,86.17,86.116,12.20363586]
[1772801293432,0.42648471,86.169,86.116,12.20363586]
[1772801293828,0.42648471,86.169,86.116,0.59142332]
[1772801294029,0.42648471,86.159,86.111,11.61284054]
[1772801294530,0.42648471,86.167,86.112,0.59142332]
[1772801294848,11.60523628,86.168,86.114,3.69383402]
[1772801295035,11.60464484,86.173,86.114,3.69383402]
[1772801295235,0.53062063,86.172,86.114,3.69383402]
[1772801295634,0.53062063,86.191,86.114,3.69383402]
[1772801295943,0.53062063,86.19,86.115,0.42648471]
[1772801296241,12.13302929,86.189,86.12,0.42648471]
[1772801296646,0.52921883,86.188,86.12,0.42648471]
[1772801296851,0.52921883,86.188,86.121,0.54321036]
[1772801297352,12.13051103,86.187,86.126,0.54321036]
[1772801297851,0.2,86.21,86.128,0.54321036]
[1772801298023,0.2,86.21,86.141,0.14216157]
[1772801298229,0.2,86.21,86.135,3.69383402]
[1772801298230,0.52783314,86.208,86.152,0.54321036]
[1772801299546,0.2,86.21,86.157,0.54321036]
[1772801299755,11.79961702,86.21,86.157,0.54321036]
[1772801302949,11.79961702,86.21,86.161,3.69383402]
[1772801303149,11.79961702,86.21,86.162,0.54321036]
[1772801303339,0.2,86.21,86.162,0.54321036]
[1772801304861,0.2,86.21,86.164,0.54321036]
[1772801305048,0.2,86.21,86.165,98.64794289]
[1772801305360,0.2,86.21,86.171,0.54321036]
[1772801305656,0.51730548,86.209,86.171,0.54321036]
[1772801306958,0.2,86.21,86.171,0.54321036]
[1772801307159,0.51605662,86.208,86.173,0.54321036]
[1772801307668,0.51605662,86.208,86.172,11.60469758]
[1772801308155,0.14216157,86.198,86.144,0.54321036]
[1772801308335,0.14216157,86.198,86.113,52.2]
[1772801308336,0.51360177,86.186,86.137,11.60940453]
[1772801308538,0.51360177,86.186,86.141,11.60887382]
[1772801308749,0.51360177,86.186,86.142,0.54321036]
[1772801309137,0.51360177,86.184,86.144,0.54321036]
[1772801311854,0.50885901,86.193,86.146,0.54735348]
[1772801312059,0.50885901,86.191,86.146,0.54735348]
[1772801313145,0.50770717,86.2,86.149,0.54735348]
[1772801313363,0.50770717,86.2,86.151,0.54735348]
[1772801313645,0.50770717,86.2,86.153,0.54735348]
[1772801313847,0.50770717,86.2,86.158,0.54735348]
[1772801314568,11.60106265,86.199,86.158,0.54735348]
[1772801315666,0.50770717,86.2,86.158,0.54735348]
[1772801315865,11.60106265,86.199,86.16,0.54735348]
[1772801316048,0.50433042,86.198,86.16,0.54735348]
[1772801316950,0.50323059,86.196,86.161,11.60617912]
[1772801318662,0.50323059,86.196,86.15,3.69383402]
[1772801318860,0.50323059,86.196,86.152,3.69383402]
[1772801319364,0.50106869,86.194,86.156,3.69383402]
[1772801319571,0.50106869,86.194,86.157,0.54735348]
[1772801320645,0.49895617,86.192,86.139,11.60914336]
[1772801320874,0.49895617,86.188,86.139,11.60914336]
[1772801321456,0.28432314,86.189,86.139,11.60914336]
[1772801321457,0.49791808,86.184,86.139,11.60914336]
[1772801321663,0.14216157,86.185,86.139,11.60914336]